[Event "December 5 Early 2023"]
[Site "https://www.chess.com"]
[Date "2023.12.05"]
[Round "11"]
[White "Liu, Casper"]
[Black "Toman, Ondrej"]
[Result "1-0"]
[Board "80"]
[TimeControl "180+1"]
[WhiteFideId "1454153"]
[BlackFideId "344516"]
[WhiteElo "2448"]
[BlackElo "2579"]
[WhiteTeam "DEN"]
[BlackTeam "CZE"]
[WhiteClock "0:00:11"]
[BlackClock "0:00:00"]

1. d4 {[%clk 0:02:55]}  Nf6 {[%clk 0:02:57]} 2. Bf4 {[%clk 0:02:55]}  c5 {[%clk 0:02:56]} 3. dxc5 {[%clk 0:02:55]}  Qa5+ {[%clk 0:02:43]} 4. Nc3 {[%clk 0:02:55]}  Qxc5 {[%clk 0:02:43]} 5. e4 {[%clk 0:02:56]}  d6 {[%clk 0:02:42]} 6. Qd2 {[%clk 0:02:55]}  Nc6 {[%clk 0:02:41]} 7. O-O-O {[%clk 0:02:56]}  a6 {[%clk 0:02:33]} 8. Nf3 {[%clk 0:02:55]}  Bg4 {[%clk 0:02:32]} 9. Kb1 {[%clk 0:02:52]}  h6 {[%clk 0:02:30]} 10. Be3 {[%clk 0:02:52]}  Qa5 {[%clk 0:02:29]} 11. Bc4 {[%clk 0:02:47]}  g6 {[%clk 0:02:16]} 12. Nd5 {[%clk 0:02:38]}  Nxd5 {[%clk 0:02:13]} 13. exd5 {[%clk 0:02:34]}  Qxd2 {[%clk 0:02:11]} 14. Rxd2 {[%clk 0:02:34]}  Bxf3 {[%clk 0:02:11]} 15. gxf3 {[%clk 0:02:30]}  Ne5 {[%clk 0:02:09]} 16. Be2 {[%clk 0:02:30]}  Bg7 {[%clk 0:02:06]} 17. f4 {[%clk 0:02:19]}  Nd7 {[%clk 0:02:02]} 18. Rg1 {[%clk 0:02:20]}  Bf6 {[%clk 0:01:57]} 19. Bg4 {[%clk 0:02:10]}  h5 {[%clk 0:01:54]} 20. Bh3 {[%clk 0:02:09]}  Nc5 {[%clk 0:01:44]} 21. Bxc5 {[%clk 0:01:41]}  dxc5 {[%clk 0:01:45]} 22. d6 {[%clk 0:01:42]}  exd6 {[%clk 0:01:40]} 23. Rxd6 {[%clk 0:01:38]}  Bd4 {[%clk 0:01:36]} 24. Re1+ {[%clk 0:01:37]}  Kf8 {[%clk 0:01:36]} 25. Rd7 {[%clk 0:01:30]}  Kg7 {[%clk 0:01:18]} 26. Ree7 {[%clk 0:01:28]}  Rhf8 {[%clk 0:01:15]} 27. Be6 {[%clk 0:01:04]}  Kf6 {[%clk 0:01:07]} 28. Bxf7 {[%clk 0:01:01]}  Rad8 {[%clk 0:01:01]} 29. Bd5 {[%clk 0:00:57]}  Rxd7 {[%clk 0:00:50]} 30. Rxd7 {[%clk 0:00:58]}  Kf5 {[%clk 0:00:43]} 31. Bxb7 {[%clk 0:00:53]}  a5 {[%clk 0:00:40]} 32. c3 {[%clk 0:00:35]}  Bxf2 {[%clk 0:00:40]} 33. Rg7 {[%clk 0:00:35]}  Be3 {[%clk 0:00:37]} 34. Ba6 {[%clk 0:00:33]}  Kf6 {[%clk 0:00:25]} 35. Rc7 {[%clk 0:00:31]}  Bxf4 {[%clk 0:00:25]} 36. Rxc5 {[%clk 0:00:31]}  Bxh2 {[%clk 0:00:25]} 37. Rxa5 {[%clk 0:00:30]}  h4 {[%clk 0:00:24]} 38. Bd3 {[%clk 0:00:28]}  g5 {[%clk 0:00:19]} 39. Rf5+ {[%clk 0:00:27]}  Ke7 {[%clk 0:00:19]} 40. Rxg5 {[%clk 0:00:28]}  Bg3 {[%clk 0:00:17]} 41. Rh5 {[%clk 0:00:25]}  Rf2 {[%clk 0:00:16]} 42. a4 {[%clk 0:00:24]}  Kd6 {[%clk 0:00:16]} 43. a5 {[%clk 0:00:24]}  Kc7 {[%clk 0:00:16]} 44. Rh6 {[%clk 0:00:21]}  Rf3 {[%clk 0:00:14]} 45. Rh7+ {[%clk 0:00:18]}  Kb8 {[%clk 0:00:14]} 46. Be4 {[%clk 0:00:19]}  Re3 {[%clk 0:00:13]} 47. Bc6 {[%clk 0:00:19]}  Bc7 {[%clk 0:00:10]} 48. a6 {[%clk 0:00:18]}  h3 {[%clk 0:00:07]} 49. Rxc7 {[%clk 0:00:14]}  h2 {[%clk 0:00:02]} 50. Rh7 {[%clk 0:00:10]}  Re1+ {[%clk 0:00:01]} 51. Ka2 {[%clk 0:00:11]}  h1=Q {[%clk 0:00:00]} 52. a7+ {[%clk 0:00:11]} 1-0

[Event "December 5 Early 2023"]
[Site "https://www.chess.com"]
[Date "2023.12.05"]
[Round "11"]
[White "Todorovic, Bojan"]
[Black "Yezhel, Valiantsin"]
[Result "1-0"]
[Board "81"]
[TimeControl "180+1"]
[WhiteFideId "917087"]
[BlackFideId "13504983"]
[WhiteElo "2444"]
[BlackElo "2576"]
[WhiteTeam "SRB"]
[BlackTeam "FID"]
[WhiteClock "0:00:30"]
[BlackClock "0:00:15"]

1. Nf3 {[%clk 0:02:59]}  d5 {[%clk 0:02:58]} 2. c4 {[%clk 0:02:58]}  e6 {[%clk 0:02:58]} 3. g3 {[%clk 0:02:57]}  c6 {[%clk 0:02:58]} 4. Bg2 {[%clk 0:02:56]}  dxc4 {[%clk 0:02:58]} 5. a4 {[%clk 0:02:51]}  Nf6 {[%clk 0:02:57]} 6. Qc2 {[%clk 0:02:45]}  b5 {[%clk 0:02:48]} 7. Nc3 {[%clk 0:02:33]}  b4 {[%clk 0:02:45]} 8. Ne4 {[%clk 0:02:33]}  Ba6 {[%clk 0:02:45]} 9. O-O {[%clk 0:02:28]}  Be7 {[%clk 0:02:39]} 10. Ne5 {[%clk 0:02:24]}  O-O {[%clk 0:02:20]} 11. Nxc4 {[%clk 0:02:19]}  Nbd7 {[%clk 0:02:15]} 12. d3 {[%clk 0:02:07]}  Rc8 {[%clk 0:02:12]} 13. Be3 {[%clk 0:01:53]}  Nb6 {[%clk 0:02:06]} 14. Nc5 {[%clk 0:01:31]}  Bxc4 {[%clk 0:01:59]} 15. dxc4 {[%clk 0:01:31]}  a5 {[%clk 0:01:52]} 16. Rad1 {[%clk 0:01:26]}  Qc7 {[%clk 0:01:47]} 17. Nb3 {[%clk 0:01:19]}  Nxa4 {[%clk 0:01:19]} 18. Ra1 {[%clk 0:01:05]}  Nb6 {[%clk 0:01:18]} 19. Nxa5 {[%clk 0:01:03]}  c5 {[%clk 0:01:14]} 20. Nc6 {[%clk 0:00:52]}  Qxc6 {[%clk 0:00:57]} 21. Bxc6 {[%clk 0:00:51]}  Rxc6 {[%clk 0:00:58]} 22. Ra6 {[%clk 0:00:50]}  Rfc8 {[%clk 0:00:55]} 23. Bg5 {[%clk 0:00:42]}  h6 {[%clk 0:00:55]} 24. Bxf6 {[%clk 0:00:42]}  Bxf6 {[%clk 0:00:55]} 25. Rd1 {[%clk 0:00:41]}  R8c7 {[%clk 0:00:44]} 26. b3 {[%clk 0:00:40]}  g6 {[%clk 0:00:42]} 27. h4 {[%clk 0:00:36]}  h5 {[%clk 0:00:42]} 28. e3 {[%clk 0:00:36]}  Kg7 {[%clk 0:00:42]} 29. Kg2 {[%clk 0:00:36]}  Nc8 {[%clk 0:00:31]} 30. Rxc6 {[%clk 0:00:35]}  Rxc6 {[%clk 0:00:32]} 31. Rd7 {[%clk 0:00:35]}  Ne7 {[%clk 0:00:28]} 32. Qe4 {[%clk 0:00:35]}  Ra6 {[%clk 0:00:20]} 33. Qb7 {[%clk 0:00:33]}  Ra2 {[%clk 0:00:17]} 34. Rxe7 {[%clk 0:00:31]}  Bxe7 {[%clk 0:00:17]} 35. Qxe7 {[%clk 0:00:32]}  Rc2 {[%clk 0:00:18]} 36. Qxc5 {[%clk 0:00:31]}  Rc3 {[%clk 0:00:16]} 37. Qxb4 {[%clk 0:00:30]}  Rc2 {[%clk 0:00:15]} 38. c5 {[%clk 0:00:30]} 1-0

[Event "December 5 Early 2023"]
[Site "https://www.chess.com"]
[Date "2023.12.05"]
[Round "11"]
[White "Jaskolka, Tomasz"]
[Black "Sai Han Thiha"]
[Result "1-0"]
[Board "84"]
[TimeControl "180+1"]
[WhiteFideId "1170791"]
[BlackFideId "13012290"]
[WhiteElo "2546"]
[BlackElo "2436"]
[WhiteTeam "POL"]
[BlackTeam "MYA"]
[WhiteClock "0:00:37"]
[BlackClock "0:00:45"]

1. e4 {[%clk 0:03:00]}  c6 {[%clk 0:03:00]} 2. d4 {[%clk 0:02:58]}  d5 {[%clk 0:03:01]} 3. f3 {[%clk 0:02:58]}  dxe4 {[%clk 0:03:02]} 4. fxe4 {[%clk 0:02:58]}  e5 {[%clk 0:03:03]} 5. Nf3 {[%clk 0:02:55]}  Bg4 {[%clk 0:03:03]} 6. Be3 {[%clk 0:02:53]}  Nf6 {[%clk 0:02:45]} 7. Bc4 {[%clk 0:02:32]}  exd4 {[%clk 0:02:41]} 8. Bxd4 {[%clk 0:02:25]}  c5 {[%clk 0:02:35]} 9. Bxf6 {[%clk 0:02:12]}  Qxd1+ {[%clk 0:02:31]} 10. Kxd1 {[%clk 0:02:12]}  gxf6 {[%clk 0:02:31]} 11. Nc3 {[%clk 0:02:12]}  Nc6 {[%clk 0:02:27]} 12. Nd5 {[%clk 0:02:12]}  O-O-O {[%clk 0:02:25]} 13. c3 {[%clk 0:02:09]}  Ne5 {[%clk 0:02:23]} 14. Be2 {[%clk 0:02:09]}  Ng6 {[%clk 0:02:15]} 15. Kc2 {[%clk 0:02:05]}  f5 {[%clk 0:02:08]} 16. Ne3 {[%clk 0:01:54]}  fxe4 {[%clk 0:01:58]} 17. Nxg4 {[%clk 0:01:53]}  exf3 {[%clk 0:01:59]} 18. Bxf3 {[%clk 0:01:54]}  Bg7 {[%clk 0:01:57]} 19. Rad1 {[%clk 0:01:51]}  b6 {[%clk 0:01:50]} 20. Ne3 {[%clk 0:01:46]}  Ne5 {[%clk 0:01:48]} 21. Be4 {[%clk 0:01:44]}  Rxd1 {[%clk 0:01:35]} 22. Rxd1 {[%clk 0:01:44]}  Rd8 {[%clk 0:01:36]} 23. Rxd8+ {[%clk 0:01:44]}  Kxd8 {[%clk 0:01:36]} 24. Bxh7 {[%clk 0:01:45]}  Bf8 {[%clk 0:01:31]} 25. Be4 {[%clk 0:01:35]}  Ke7 {[%clk 0:01:29]} 26. g4 {[%clk 0:01:33]}  f6 {[%clk 0:01:22]} 27. h4 {[%clk 0:01:33]}  Ke6 {[%clk 0:01:21]} 28. h5 {[%clk 0:01:26]}  Bh6 {[%clk 0:01:21]} 29. Bf5+ {[%clk 0:01:24]}  Kd6 {[%clk 0:01:19]} 30. Nd1 {[%clk 0:01:08]}  Nf3 {[%clk 0:01:10]} 31. Nf2 {[%clk 0:01:04]}  Ke5 {[%clk 0:01:09]} 32. Nd3+ {[%clk 0:01:03]}  Kd5 {[%clk 0:01:03]} 33. Kd1 {[%clk 0:01:00]}  Ne5 {[%clk 0:01:00]} 34. Nf2 {[%clk 0:00:58]}  Nc4 {[%clk 0:00:59]} 35. b3 {[%clk 0:00:37]}  Ne3+ {[%clk 0:00:57]} 36. Ke2 {[%clk 0:00:38]}  Nxf5 {[%clk 0:00:44]} 37. gxf5 {[%clk 0:00:38]}  Ke5 {[%clk 0:00:44]} 38. Ng4+ {[%clk 0:00:38]}  Kxf5 {[%clk 0:00:44]} 39. Nxh6+ {[%clk 0:00:38]}  Kg5 {[%clk 0:00:45]} 40. Ng8 {[%clk 0:00:37]}  Kxh5 {[%clk 0:00:45]} 41. Nxf6+ {[%clk 0:00:37]} 1-0

[Event "December 5 Early 2023"]
[Site "https://www.chess.com"]
[Date "2023.12.05"]
[Round "11"]
[White "Kiremitciyan, Ari"]
[Black "Vakhidov, Shahzod"]
[Result "0-1"]
[Board "86"]
[TimeControl "180+1"]
[WhiteFideId "6373445"]
[BlackFideId "14205270"]
[WhiteElo "2423"]
[BlackElo "2530"]
[WhiteTeam "TUR"]
[BlackTeam "UZB"]
[WhiteClock "0:00:15"]
[BlackClock "0:00:51"]

1. e4 {[%clk 0:03:00]}  c5 {[%clk 0:02:58]} 2. Nf3 {[%clk 0:03:00]}  g6 {[%clk 0:02:58]} 3. c3 {[%clk 0:02:59]}  d5 {[%clk 0:02:58]} 4. exd5 {[%clk 0:02:57]}  Qxd5 {[%clk 0:02:59]} 5. d4 {[%clk 0:02:57]}  Bg7 {[%clk 0:02:59]} 6. Be3 {[%clk 0:02:57]}  Nf6 {[%clk 0:02:59]} 7. Na3 {[%clk 0:02:53]}  cxd4 {[%clk 0:02:45]} 8. Nb5 {[%clk 0:02:49]}  Na6 {[%clk 0:02:44]} 9. Qxd4 {[%clk 0:02:46]}  O-O {[%clk 0:02:40]} 10. Bc4 {[%clk 0:02:38]}  Qh5 {[%clk 0:02:35]} 11. Qh4 {[%clk 0:02:29]}  Qxh4 {[%clk 0:02:14]} 12. Nxh4 {[%clk 0:02:30]}  Ng4 {[%clk 0:02:14]} 13. Bxa7 {[%clk 0:02:16]}  Bd7 {[%clk 0:02:09]} 14. Bb6 {[%clk 0:02:13]}  Rfc8 {[%clk 0:01:41]} 15. Be2 {[%clk 0:01:53]}  Rc6 {[%clk 0:01:36]} 16. Ba5 {[%clk 0:01:26]}  Re6 {[%clk 0:01:16]} 17. a4 {[%clk 0:00:54]}  Nc5 {[%clk 0:01:08]} 18. Kf1 {[%clk 0:00:15]}  Rxa5 {[%clk 0:00:51]} 0-1

[Event "December 5 Early 2023"]
[Site "https://www.chess.com"]
[Date "2023.12.05"]
[Round "11"]
[White "Dimitrijevic, Darko"]
[Black "Ovezdurdyyeva, Jemal"]
[Result "0-1"]
[Board "91"]
[TimeControl "180+1"]
[WhiteFideId "14500892"]
[BlackFideId "14001888"]
[WhiteElo "2245"]
[BlackElo "2400"]
[WhiteTeam "CRO"]
[BlackTeam "TKM"]
[WhiteClock "0:01:10"]
[BlackClock "0:02:20"]

1. g3 {[%clk 0:02:57]}  Nf6 {[%clk 0:02:58]} 2. Bg2 {[%clk 0:02:56]}  g6 {[%clk 0:02:58]} 3. b3 {[%clk 0:02:56]}  Bg7 {[%clk 0:02:59]} 4. Bb2 {[%clk 0:02:56]}  O-O {[%clk 0:03:00]} 5. d3 {[%clk 0:02:56]}  Nc6 {[%clk 0:02:58]} 6. Nd2 {[%clk 0:02:56]}  b6 {[%clk 0:02:58]} 7. e4 {[%clk 0:02:56]}  Bb7 {[%clk 0:02:59]} 8. Ne2 {[%clk 0:02:56]}  d5 {[%clk 0:02:58]} 9. e5 {[%clk 0:02:50]}  Nd7 {[%clk 0:02:57]} 10. f4 {[%clk 0:02:50]}  e6 {[%clk 0:02:55]} 11. d4 {[%clk 0:02:47]}  Ne7 {[%clk 0:02:54]} 12. Nf3 {[%clk 0:02:43]}  Nf5 {[%clk 0:02:53]} 13. Qd2 {[%clk 0:02:41]}  c5 {[%clk 0:02:53]} 14. O-O-O {[%clk 0:02:36]}  a5 {[%clk 0:02:51]} 15. g4 {[%clk 0:02:30]}  Nh4 {[%clk 0:02:49]} 16. Nxh4 {[%clk 0:02:27]}  Qxh4 {[%clk 0:02:50]} 17. h3 {[%clk 0:02:27]}  a4 {[%clk 0:02:49]} 18. Qe3 {[%clk 0:02:22]}  axb3 {[%clk 0:02:46]} 19. axb3 {[%clk 0:02:21]}  Ba6 {[%clk 0:02:42]} 20. Ng3 {[%clk 0:02:16]}  c4 {[%clk 0:02:39]} 21. b4 {[%clk 0:02:11]}  c3 {[%clk 0:02:37]} 22. Bxc3 {[%clk 0:02:10]}  Rfc8 {[%clk 0:02:37]} 23. Bb2 {[%clk 0:02:08]}  Bc4 {[%clk 0:02:30]} 24. Bf1 {[%clk 0:01:56]}  b5 {[%clk 0:02:27]} 25. c3 {[%clk 0:01:49]}  Nb6 {[%clk 0:02:25]} 26. Kb1 {[%clk 0:01:36]}  Ra2 {[%clk 0:02:20]} 27. Bxc4 {[%clk 0:01:10]}  Rxb2+ {[%clk 0:02:20]} 0-1

[Event "December 5 Early 2023"]
[Site "https://www.chess.com"]
[Date "2023.12.05"]
[Round "11"]
[White "Sadubayev, Airat"]
[Black "Skibbe, Willi"]
[Result "1/2-1/2"]
[Board "92"]
[TimeControl "180+1"]
[WhiteFideId "13713264"]
[BlackFideId "4682190"]
[WhiteElo "2647"]
[BlackElo "2337"]
[WhiteTeam "KAZ"]
[BlackTeam "GER"]
[WhiteClock "0:00:14"]
[BlackClock "0:00:20"]

1. d4 {[%clk 0:03:00]}  d5 {[%clk 0:02:59]} 2. c4 {[%clk 0:03:00]}  e6 {[%clk 0:02:59]} 3. Nf3 {[%clk 0:03:00]}  Nf6 {[%clk 0:02:59]} 4. Nc3 {[%clk 0:03:00]}  Be7 {[%clk 0:02:59]} 5. Bf4 {[%clk 0:02:59]}  O-O {[%clk 0:02:58]} 6. e3 {[%clk 0:02:59]}  b6 {[%clk 0:02:58]} 7. cxd5 {[%clk 0:02:55]}  Nxd5 {[%clk 0:02:58]} 8. Bg3 {[%clk 0:02:54]}  c5 {[%clk 0:02:40]} 9. Bd3 {[%clk 0:02:51]}  Nc6 {[%clk 0:02:35]} 10. O-O {[%clk 0:02:46]}  cxd4 {[%clk 0:02:33]} 11. exd4 {[%clk 0:02:42]}  Bb7 {[%clk 0:02:30]} 12. a3 {[%clk 0:02:36]}  Rc8 {[%clk 0:02:29]} 13. Rc1 {[%clk 0:02:34]}  Nxc3 {[%clk 0:02:17]} 14. Rxc3 {[%clk 0:02:31]}  Bf6 {[%clk 0:02:13]} 15. Be4 {[%clk 0:02:20]}  Qd7 {[%clk 0:01:48]} 16. Rd3 {[%clk 0:02:02]}  Ne7 {[%clk 0:01:25]} 17. Ne5 {[%clk 0:01:50]}  Bxe5 {[%clk 0:01:18]} 18. dxe5 {[%clk 0:01:48]}  Qc7 {[%clk 0:01:17]} 19. Rd7 {[%clk 0:01:42]}  Bxe4 {[%clk 0:01:13]} 20. Rxc7 {[%clk 0:01:40]}  Rxc7 {[%clk 0:01:14]} 21. Qd6 {[%clk 0:01:31]}  Rfc8 {[%clk 0:01:13]} 22. Rd1 {[%clk 0:01:22]}  Nd5 {[%clk 0:01:13]} 23. h4 {[%clk 0:00:51]}  Rc6 {[%clk 0:01:07]} 24. Qd7 {[%clk 0:00:47]}  R6c7 {[%clk 0:00:55]} 25. Qb5 {[%clk 0:00:33]}  h5 {[%clk 0:00:44]} 26. Qe2 {[%clk 0:00:30]}  Bg6 {[%clk 0:00:43]} 27. Qa6 {[%clk 0:00:25]}  Bf5 {[%clk 0:00:38]} 28. Kh2 {[%clk 0:00:16]}  Bg4 {[%clk 0:00:29]} 29. Re1 {[%clk 0:00:17]}  Bf5 {[%clk 0:00:23]} 30. Qe2 {[%clk 0:00:15]}  Bg4 {[%clk 0:00:21]} 31. Qa6 {[%clk 0:00:15]}  Bf5 {[%clk 0:00:21]} 32. Qe2 {[%clk 0:00:15]}  Bg4 {[%clk 0:00:20]} 33. Qa6 {[%clk 0:00:14]} 1/2-1/2

[Event "December 5 Early 2023"]
[Site "https://www.chess.com"]
[Date "2023.12.05"]
[Round "11"]
[White "NovakRatko"]
[Black "Malyi, Viacheslav"]
[Result "1-0"]
[Board "94"]
[TimeControl "180+1"]
[BlackFideId "14123983"]
[WhiteElo "2470"]
[BlackElo "2562"]
[BlackTeam "UKR"]
[WhiteClock "0:00:38"]
[BlackClock "0:00:21"]

1. d4 {[%clk 0:03:00]}  Nf6 {[%clk 0:02:59]} 2. c4 {[%clk 0:03:00]}  g6 {[%clk 0:02:59]} 3. Nc3 {[%clk 0:03:00]}  d5 {[%clk 0:02:59]} 4. f3 {[%clk 0:03:00]}  Bg7 {[%clk 0:02:48]} 5. e4 {[%clk 0:03:00]}  dxe4 {[%clk 0:02:46]} 6. fxe4 {[%clk 0:03:01]}  e5 {[%clk 0:02:45]} 7. d5 {[%clk 0:03:01]}  O-O {[%clk 0:02:33]} 8. Be2 {[%clk 0:03:01]}  c6 {[%clk 0:02:33]} 9. Bg5 {[%clk 0:02:59]}  h6 {[%clk 0:02:30]} 10. Bh4 {[%clk 0:02:59]}  cxd5 {[%clk 0:02:28]} 11. cxd5 {[%clk 0:02:56]}  Nbd7 {[%clk 0:02:27]} 12. Nf3 {[%clk 0:02:47]}  Nc5 {[%clk 0:02:20]} 13. Qc2 {[%clk 0:02:46]}  Bg4 {[%clk 0:02:18]} 14. O-O {[%clk 0:02:32]}  Rc8 {[%clk 0:02:17]} 15. h3 {[%clk 0:02:30]}  Bxf3 {[%clk 0:01:59]} 16. Bxf3 {[%clk 0:02:28]}  Qb6 {[%clk 0:01:50]} 17. Bf2 {[%clk 0:02:26]}  Qb4 {[%clk 0:01:48]} 18. a3 {[%clk 0:02:24]}  Qb3 {[%clk 0:01:45]} 19. Rac1 {[%clk 0:02:19]}  Qxc2 {[%clk 0:01:45]} 20. Rxc2 {[%clk 0:02:19]}  Nb3 {[%clk 0:01:45]} 21. Bxa7 {[%clk 0:02:13]}  Nd4 {[%clk 0:01:44]} 22. Rd2 {[%clk 0:02:05]}  Nb3 {[%clk 0:01:43]} 23. Rdf2 {[%clk 0:02:04]}  Ne8 {[%clk 0:01:35]} 24. Bd1 {[%clk 0:02:03]}  Nd4 {[%clk 0:01:34]} 25. Rd2 {[%clk 0:01:35]}  Nd6 {[%clk 0:01:33]} 26. Be2 {[%clk 0:01:13]}  h5 {[%clk 0:01:27]} 27. Bd3 {[%clk 0:01:11]}  Bh6 {[%clk 0:01:25]} 28. Rdd1 {[%clk 0:01:10]}  Nc4 {[%clk 0:01:23]} 29. Bxc4 {[%clk 0:01:07]}  Rxc4 {[%clk 0:01:24]} 30. Rfe1 {[%clk 0:01:02]}  Rfc8 {[%clk 0:01:22]} 31. Kf2 {[%clk 0:00:55]}  h4 {[%clk 0:01:19]} 32. Rd3 {[%clk 0:00:50]}  Bf4 {[%clk 0:01:18]} 33. Red1 {[%clk 0:00:50]}  Nc2 {[%clk 0:01:09]} 34. d6 {[%clk 0:00:45]}  Nd4 {[%clk 0:01:03]} 35. Bxd4 {[%clk 0:00:44]}  exd4 {[%clk 0:01:04]} 36. Rxd4 {[%clk 0:00:45]}  R4c6 {[%clk 0:00:57]} 37. Nd5 {[%clk 0:00:41]}  Kg7 {[%clk 0:00:26]} 38. Nxf4 {[%clk 0:00:39]}  Rc2+ {[%clk 0:00:21]} 39. R1d2 {[%clk 0:00:38]} 1-0

[Event "December 5 Early 2023"]
[Site "https://www.chess.com"]
[Date "2023.12.05"]
[Round "11"]
[White "Kovalyov, Eduard"]
[Black "Hajiyev, Kanan"]
[Result "0-1"]
[Board "96"]
[TimeControl "180+1"]
[WhiteFideId "14118033"]
[BlackFideId "13404148"]
[WhiteElo "2428"]
[BlackElo "2534"]
[WhiteTeam "UKR"]
[BlackTeam "AZE"]
[WhiteClock "0:00:00"]
[BlackClock "0:00:07"]

1. d4 {[%clk 0:02:57]}  c6 {[%clk 0:03:00]} 2. c4 {[%clk 0:02:55]}  d5 {[%clk 0:03:01]} 3. cxd5 {[%clk 0:02:56]}  cxd5 {[%clk 0:03:02]} 4. Bf4 {[%clk 0:02:56]}  Nf6 {[%clk 0:03:03]} 5. e3 {[%clk 0:02:56]}  Nc6 {[%clk 0:03:03]} 6. Nc3 {[%clk 0:02:57]}  a6 {[%clk 0:03:03]} 7. Bd3 {[%clk 0:02:56]}  Bg4 {[%clk 0:03:04]} 8. Nge2 {[%clk 0:02:56]}  e6 {[%clk 0:03:03]} 9. O-O {[%clk 0:02:54]}  Bd6 {[%clk 0:03:03]} 10. f3 {[%clk 0:02:53]}  Bh5 {[%clk 0:03:02]} 11. Rc1 {[%clk 0:02:51]}  O-O {[%clk 0:03:03]} 12. Na4 {[%clk 0:02:52]}  e5 {[%clk 0:02:51]} 13. Bg3 {[%clk 0:02:44]}  Re8 {[%clk 0:02:29]} 14. Nc5 {[%clk 0:02:39]}  Qe7 {[%clk 0:02:21]} 15. Bf2 {[%clk 0:02:24]}  Rac8 {[%clk 0:02:08]} 16. Ng3 {[%clk 0:02:18]}  Bg6 {[%clk 0:02:08]} 17. Nf5 {[%clk 0:02:18]}  Bxf5 {[%clk 0:02:07]} 18. Bxf5 {[%clk 0:02:19]}  Rcd8 {[%clk 0:01:58]} 19. a3 {[%clk 0:02:06]}  a5 {[%clk 0:01:46]} 20. Qa4 {[%clk 0:01:56]}  g6 {[%clk 0:01:41]} 21. Bd3 {[%clk 0:01:40]}  Rc8 {[%clk 0:01:36]} 22. Bb5 {[%clk 0:01:33]}  Red8 {[%clk 0:01:29]} 23. Rc2 {[%clk 0:01:18]}  exd4 {[%clk 0:01:20]} 24. exd4 {[%clk 0:00:44]}  Nxd4 {[%clk 0:00:50]} 25. Qxd4 {[%clk 0:00:44]}  b6 {[%clk 0:00:50]} 26. Re2 {[%clk 0:00:33]}  bxc5 {[%clk 0:00:48]} 27. Rxe7 {[%clk 0:00:33]}  cxd4 {[%clk 0:00:47]} 28. Rb7 {[%clk 0:00:30]}  Rb8 {[%clk 0:00:42]} 29. Rxb8 {[%clk 0:00:24]}  Rxb8 {[%clk 0:00:43]} 30. Bxd4 {[%clk 0:00:24]}  Rxb5 {[%clk 0:00:29]} 31. Bxf6 {[%clk 0:00:24]}  Bc5+ {[%clk 0:00:26]} 32. Kh1 {[%clk 0:00:23]}  Rb6 {[%clk 0:00:27]} 33. Bc3 {[%clk 0:00:21]}  d4 {[%clk 0:00:23]} 34. Bxa5 {[%clk 0:00:19]}  Rxb2 {[%clk 0:00:23]} 35. a4 {[%clk 0:00:15]}  Ra2 {[%clk 0:00:23]} 36. Rd1 {[%clk 0:00:13]}  Rxa4 {[%clk 0:00:23]} 37. Bd8 {[%clk 0:00:12]}  f5 {[%clk 0:00:21]} 38. Bf6 {[%clk 0:00:11]}  Kf7 {[%clk 0:00:22]} 39. Be5 {[%clk 0:00:11]}  Ke6 {[%clk 0:00:23]} 40. Bh8 {[%clk 0:00:12]}  Kd5 {[%clk 0:00:18]} 41. h4 {[%clk 0:00:10]}  Ra2 {[%clk 0:00:15]} 42. Kh2 {[%clk 0:00:09]}  Bd6+ {[%clk 0:00:12]} 43. Kh3 {[%clk 0:00:09]}  Be5 {[%clk 0:00:13]} 44. Bxe5 {[%clk 0:00:08]}  Kxe5 {[%clk 0:00:14]} 45. Kg3 {[%clk 0:00:08]}  f4+ {[%clk 0:00:13]} 46. Kh3 {[%clk 0:00:07]}  h5 {[%clk 0:00:13]} 47. g3 {[%clk 0:00:07]}  fxg3 {[%clk 0:00:07]} 48. Kxg3 {[%clk 0:00:07]}  Re2 {[%clk 0:00:07]} 49. Rd3 {[%clk 0:00:07]}  Re3 {[%clk 0:00:07]} 50. Rd2 {[%clk 0:00:06]}  d3 {[%clk 0:00:06]} 51. Kf2 {[%clk 0:00:05]}  Kf4 {[%clk 0:00:07]} 52. Ra2 {[%clk 0:00:03]}  Rxf3+ {[%clk 0:00:07]} 53. Kg2 {[%clk 0:00:04]}  Re3 {[%clk 0:00:06]} 54. Ra4+ {[%clk 0:00:04]}  Re4 {[%clk 0:00:06]} 55. Ra8 {[%clk 0:00:03]}  Ke3 {[%clk 0:00:06]} 56. Ra3 {[%clk 0:00:02]}  Rg4+ {[%clk 0:00:07]} 57. Kf1 {[%clk 0:00:00]}  Rxh4 {[%clk 0:00:07]} 0-1